[Event "3rd VIZAG GM-Open 2022"]
[Site "Visakapatnam"]
[Date "2022.06.13"]
[Round "3.9"]
[White "Jain Kashish Manoj"]
[Black "Hossain, Enamul"]
[Result "1-0"]
[ECO "B43"]
[WhiteElo "2271"]
[BlackElo "2413"]
[Annotator "TA"]
[PlyCount "93"]
[EventDate "2022.06.13"]
[EventType "swiss"]
[EventCountry "IND"]
[SourceTitle "playchess.com"]
[Source "ChessBase"]
[SourceQuality "1"]
[TimeControl "5400+30"]

{[%evp 15,93,33,61,55,67,41,46,41,82,87,106,50,162,179,273,188,202,131,322,309,304,256,250,248,251,224,239,231,425,402,403,96,93,59,70,65,113,109,474,107,113,104,183,180,172,105,96,49,54,54,47,54,115,59,102,55,60,69,140,117,189,187,286,254,347,341,324,270,503,485,497,492,442,434,2829,2579,29984,29985,29989,29990]} 1. e4 {[%emt 0:00:17]} c5 {[%emt 0:01:20]} 2. Nf3 {[%emt 0:00:16]} e6 {[%emt 0:00:17]} 3. d4 {[%emt 0:00:11]} cxd4 {[%emt 0:00:08]} 4. Nxd4 {[%emt 0:00:06]} a6 {[%emt 0:00:07]} 5. Nc3 {[%emt 0:00:14]} Qc7 {[%emt 0:00:40]} 6. Bd3 {[%emt 0:00:29]} Nf6 {[%emt 0:00:37]} 7. O-O {[%emt 0:00:23]} Bc5 {[%emt 0:00:18]} 8. Nb3 {[%emt 0:01:28]} Ba7 {[%emt 0:00:10]} 9. Bg5 {[%emt 0:00:53] B43: Sicilian: Kan Variation: 5 Nc3.} d6 {[%emt 0:01:01]} 10. Kh1 {[%emt 0:02:51]} (10. Bxf6 $5 gxf6 11. Be2 $14) 10... Nbd7 {[%emt 0:00:21]} 11. f4 {[%emt 0:03:56] [#] White is slightly better.} Bb8 $146 {[%emt 0:17:52]} ({Predecessor:} 11... h5 12. Qf3 Ng4 13. Rae1 b5 14. e5 d5 15. Qg3 Bb6 16. Re2 Bb7 17. Bh4 g6 {½-½ (36) Lopez Rayo,S (2082)-Campos Gomez,M (2159) Risaralda 2021}) 12. Qf3 {[%emt 0:06:51]} b5 {[%emt 0:02:02]} 13. a4 {[%emt 0:12:36]} ({White should play} 13. e5 $16 Bb7 14. exd6) 13... bxa4 {[%emt 0:05:13]} (13... b4 $14 14. Na2 a5) 14. Rxa4 $18 {[%emt 0:01:38] And now Rc4 would win.} Nb6 {[%emt 0:00:07] Prevents Rc4.} (14... Bb7 $142 15. Qg3 Kf8) 15. Ra2 {[%emt 0:02:28]} Nfd7 {[%emt 0:08:59]} 16. Bh4 {[%emt 0:03:51]} Nc5 $2 {[%emt 0:02:46]} (16... O-O $16 {was necessary.} 17. Rd1 d5) 17. Nxc5 {[%emt 0:01:43]} Qxc5 {[%emt 0:00:30]} 18. Bf2 {[%emt 0:01:04]} Qc6 {[%emt 0:08:41]} 19. f5 {[%emt 0:07:23]} Nc4 {[%emt 0:06:56]} 20. fxe6 {[%emt 0:05:21]} Bxe6 {[%emt 0:01:33]} 21. Qg3 {[%emt 0:00:55]} O-O {[%emt 0:13:56]} (21... Kf8 22. Nd5 (22. Bd4 Ne5 $18) 22... Ne5) 22. Nd5 $1 {[%emt 0:00:18] Threatens to win with Ne7+.} (22. Bd4 Ne5 $14) 22... Kh8 {[%emt 0:00:24]} 23. Bd4 {[%emt 0:02:14]} (23. Qh4 $1 $18) 23... Ne5 $16 {[%emt 0:00:43]} 24. Qh4 {[%emt 0:02:31][%cal Od5f6] Black must now prevent Nf6! 0x0.0022288c053fdp-1022s more active pieces. The black rooks are badly placed.} f6 {[%emt 0:02:09]} 25. Ra3 {[%emt 0:08:40][%cal Rd5f6] Strongly threatening Nxf6!} Qe8 {[%emt 0:02:04]} (25... Qb7 $1 $14 {is superior.}) 26. Bxa6 {[%emt 0:04:45]} (26. Rxa6 Rxa6 27. Bxa6 Qa4 28. Nxf6 (28. Bxe5 $2 Qxa6 29. c4 dxe5 $19) 28... gxf6 29. Rxf6 Rf7 $1 30. Rxf7 Bxf7 31. Qf6+ Kg8 32. Qd8+ Kg7 33. Qg5+ Kf8 34. Qd8+ Kg7 35. Qg5+ Bg6 36. Qe7+ Kg8 37. Qe6+ Kg7 38. Qe7+ Kg8 39. Qe6+ Kg7 40. Qe7+ $17) 26... Qc6 $2 {[%emt 0:07:01][%mdl 8192] [#]} (26... Bxd5 $16 {is tougher.} 27. exd5 Ng6) 27. Nb4 $2 {[%emt 0:03:11]} (27. Nxf6 $1 $18 {[%mdl 512] is the precise move to win.} gxf6 28. Rxf6) 27... Qc7 {[%emt 0:02:36]} 28. Rfa1 {[%emt 0:06:24]} f5 {[%emt 0:10:46]} (28... Ng6 $16 29. Qg3 Qf7) 29. exf5 $18 {[%emt 0:08:54]} ({Much less strong is} 29. Rh3 Bg8 $16) 29... Bxf5 {[%emt 0:00:29]} 30. Rc3 {[%emt 0:00:25]} (30. Nd5 $18 Qf7 31. Ne7) 30... Qd7 {[%emt 0:00:27] [#]} 31. Rf1 {[%emt 0:01:05]} ({White should try} 31. Nd5 $1 $16) 31... Ba7 $14 {[%emt 0:01:26]} 32. Bxa7 {[%emt 0:07:59]} Qxa7 {[%emt 0:00:02]} 33. h3 {[%emt 0:00:49]} Bg6 {[%emt 0:01:47]} (33... Qb6 $14) 34. Rxf8+ {[%emt 0:01:37]} Rxf8 {[%emt 0:00:02] [#]} 35. Rc8 {[%emt 0:00:35]} ({Better is} 35. Qf4 $3 $16 {[%cal Rf4f8][%mdl 512]} Qa8 (35... Bf7 36. Qe3) 36. Qd2) 35... Rxc8 {[%emt 0:00:40]} 36. Bxc8 {[%emt 0:00:02] White wants to mate with Qd8+.} Qc7 {[%emt 0:01:09] Prevents Qd8+.} (36... h5 $14) 37. Be6 $40 {[%emt 0:00:17][%mdl 128] White wants a kill.} h6 {[%emt 0:00:27]} (37... Qb8 $16 {was worth a try.} 38. Bd5 h6) 38. Nd5 {[%emt 0:00:23]} Qa5 {[%emt 0:00:17]} (38... Qb8 $142 39. c3 Kh7) 39. b4 $18 {[%emt 0:00:51][%cal Bb2b4,Bb4b5,Bb5b6][%mdl 32]} Qa1+ {[%emt 0:00:42]} 40. Kh2 {[%emt 0:00:01] White threatens Qd8+ and mate.} Kh7 {[%emt 0:00:54]} 41. Qf2 {[%emt 0:01:53] Against Qf1} ({Weaker is} 41. Qd8 Nf3+ 42. gxf3 Qe5+ 43. Nf4 Qxf4+ 44. Kg2 Qd2+ 45. Kf1 Qc1+ 46. Kg2 Qd2+ 47. Kf1 Qc1+ 48. Kg2 Qd2+ $11) 41... Qa8 $2 {[%emt 0:01:06]} (41... Qb2 42. Bf5 (42. Qf8 Nf7 $18) 42... Qa2) 42. b5 {[%emt 0:02:20]} Qe8 {[%emt 0:02:05]} 43. Nc7 {[%emt 0:00:01]} Qd8 {[%emt 0:00:35]} 44. b6 {[%emt 0:00:01][%cal Ob6b7] Hoping for b7!} Nc6 {[%emt 0:00:33]} (44... Qb8 $142 45. Nd5 Qe8) 45. Bd5 {[%emt 0:00:29] Threatening mate with Ne6.} Ne7 {[%emt 0:00:02]} 46. Ne6 {[%emt 0:00:20]} Qb8 {[%emt 0:00:26]} 47. Qf8 {[%emt 0:00:41] Weighted Error Value: White=0.54/Black=0.81} 1-0

[Event "3rd VIZAG GM-Open 2022"]
[Site "Visakapatnam"]
[Date "2022.06.13"]
[Round "3.10"]
[White "Nitin, S.."]
[Black "Bommini Mounika Akshaya"]
[Result "1-0"]
[ECO "B20"]
[WhiteElo "2399"]
[BlackElo "2108"]
[Annotator "TA"]
[PlyCount "79"]
[EventDate "2022.06.13"]
[EventType "swiss"]
[EventCountry "IND"]
[SourceTitle "playchess.com"]
[Source "ChessBase"]
[SourceQuality "1"]
[TimeControl "5400+30"]

{[%evp 9,79,8,32,46,37,31,52,39,55,34,52,44,33,48,55,14,116,104,108,77,93,92,91,87,77,79,80,56,55,52,55,56,87,86,102,104,239,246,244,237,250,197,291,280,427,418,408,393,466,375,408,407,701,547,555,561,592,591,579,577,574,557,740,737,769,753,731,720,691,684,718,721]} 1. e4 {[%emt 0:00:33]} c5 {[%emt 0:02:45]} 2. b3 {[%emt 0:04:37]} e5 {[%emt 0:03:34]} 3. Bb2 {[%emt 0:00:36]} d6 {[%emt 0:00:51]} 4. Bb5+ {[%emt 0:05:26]} Nc6 {[%emt 0:00:37]} 5. Ne2 {[%emt 0:01:12]} Qg5 {[%emt 0:05:17]} 6. O-O {[%emt 0:03:45] [#] B20: Sicilian: Unusual White 2nd moves.} Bh3 $146 {[%emt 0:03:57][%csl Gh3][%cal Rg5g2] [#]} ({Predecessor:} 6... Bg4 7. Qe1 Bxe2 8. Qxe2 Nge7 9. Nc3 a6 10. Bxc6+ bxc6 11. Qe3 Qxe3 12. dxe3 Ng6 13. Rad1 {1-0 (50) Repkova,E (2361)-Sargac,D (2211) Rijeka 2003}) 7. Ng3 {[%emt 0:00:17]} Bg4 {[%emt 0:05:24]} 8. f3 {[%emt 0:04:53] White is slightly better.} Bd7 {[%emt 0:00:28]} 9. Nc3 {[%emt 0:00:28][%cal Bb1c3,Bc3d5,Bd5f4][%mdl 32]} O-O-O {[%emt 0:16:47]} 10. Nd5 {[%emt 0:03:25]} Nge7 {[%emt 0:01:18]} 11. f4 {[%emt 0:16:58]} exf4 {[%emt 0:05:02]} 12. Nxf4 {[%emt 0:01:26]} (12. Qh5 {is more complex.} Qxh5 13. Nxh5 f3 14. Nxe7+ Bxe7 15. Bxc6 Bxc6 16. Rxf3 Bxe4 17. Re3) 12... Ne5 {[%emt 0:10:24]} (12... h5 $1 $11) 13. Bxd7+ $16 {[%emt 0:00:32]} Rxd7 {[%emt 0:00:06]} 14. Qh5 {[%emt 0:01:48]} Qxh5 {[%emt 0:04:17]} 15. Ngxh5 {[%emt 0:02:59]} N7c6 {[%emt 0:05:23]} 16. d3 {[%emt 0:04:01]} Rg8 {[%emt 0:05:47]} 17. Nd5 {[%emt 0:06:16]} Be7 {[%emt 0:04:01]} 18. a3 {[%emt 0:02:40] White is more active.} Bg5 {[%emt 0:03:02]} 19. b4 {[%emt 0:05:15]} f6 {[%emt 0:04:38]} 20. Ng3 $36 {[%emt 0:05:43][%cal Bh5g3,Bg3f5,Bf5d6][%mdl 2080] Black is under pressure.} Rf8 {[%emt 0:08:36]} 21. b5 {[%emt 0:04:49]} Nd8 {[%emt 0:03:46]} 22. Nf5 {[%emt 0:04:18]} g6 {[%emt 0:00:27] [#] Loses the game.} (22... Ne6 $16 {is a better defense.}) 23. Nxd6+ $1 $18 {[%emt 0:00:38][%mdl 512]} Rxd6 {[%emt 0:00:21]} 24. Bxe5 {[%emt 0:00:08][%mdl 64] Pin} Re6 {[%emt 0:01:06]} 25. Bc3 {[%emt 0:04:12]} b6 {[%emt 0:02:15]} (25... f5 $142 26. g3 Rf7) 26. a4 {[%emt 0:01:37]} Nb7 {[%emt 0:00:26]} (26... f5 {was worth a try.} 27. a5 bxa5 28. Bxa5 (28. Rxa5 Rf7 $18) 28... Rf7 29. exf5 gxf5) 27. a5 {[%emt 0:00:09]} bxa5 {[%emt 0:00:47]} 28. Bxa5 {[%emt 0:00:09]} Rf7 {[%emt 0:01:09]} 29. c4 {[%emt 0:03:07]} f5 {[%emt 0:00:39]} 30. Bc3 {[%emt 0:00:18]} Nd6 {[%emt 0:00:40]} (30... Nd8 $142 31. e5 Bh6) 31. e5 {[%emt 0:00:23] White is clearly winning.} Ne8 {[%emt 0:00:20]} 32. b6 {[%emt 0:02:18]} axb6 {[%emt 0:01:25]} 33. Ra8+ {[%emt 0:00:06]} Kb7 {[%emt 0:00:23]} 34. Rfa1 {[%emt 0:00:05] White threatens R1a7+ and mate.} Kc6 {[%emt 0:00:18]} 35. Rc8+ {[%emt 0:01:04]} Kd7 {[%emt 0:00:55]} 36. Rb8 {[%emt 0:01:51] White wants to mate with Ra7+.} Bd8 {[%emt 0:00:29]} 37. Ra7+ {[%emt 0:00:19]} Nc7 {[%emt 0:00:17]} 38. Nxb6+ {[%emt 0:03:20]} Ke8 {[%emt 0:00:08]} 39. Ba5 {[%emt 0:02:14]} Rxe5 {[%emt 0:01:07]} 40. Nd5 {[%emt 0:00:07] Inhibits Rfe7.  Weighted Error Value: White=0.15 (very precise) /Black=0.31} 1-0

[Event "3rd VIZAG GM-Open 2022"]
[Site "Visakapatnam"]
[Date "2022.06.13"]
[Round "3.11"]
[White "Baghdasaryan, Vahe"]
[Black "Laxman, R.R."]
[Result "1-0"]
[ECO "C54"]
[WhiteElo "2267"]
[BlackElo "2420"]
[Annotator "TA"]
[PlyCount "67"]
[EventDate "2022.06.13"]
[EventType "swiss"]
[EventCountry "IND"]
[SourceTitle "playchess.com"]
[Source "ChessBase"]
[SourceQuality "1"]
[TimeControl "5400+30"]

{[%evp 15,67,0,0,0,0,0,0,0,33,38,19,18,70,46,47,0,0,0,0,0,0,0,0,0,0,0,0,0,26,27,29,34,43,30,445,443,414,256,766,558,862,593,593,580,795,458,860,847,796,785,29971,6307,5414,5281]} 1. e4 {[%emt 0:05:46]} e5 {[%emt 0:00:06]} 2. Nf3 {[%emt 0:00:07]} Nc6 {[%emt 0:00:06]} 3. Bc4 {[%emt 0:00:22]} Bc5 {[%emt 0:00:07]} 4. c3 {[%emt 0:00:39][%cal Bc2c3,Bc3d4][%mdl 32]} Nf6 {[%emt 0:00:07]} 5. d4 {[%emt 0:00:08]} exd4 {[%emt 0:00:09]} 6. cxd4 {[%emt 0:00:05]} Bb4+ {[%emt 0:00:10]} 7. Nbd2 $1 {[%emt 0:00:10][%mdl 4] is recently more successful than 7.Bd2.} d5 {[%emt 0:02:34]} 8. exd5 {[%emt 0:00:08]} Nxd5 {[%emt 0:00:03]} 9. O-O {[%emt 0:00:10] C54: Giuoco Piano: 4 c3 Nf6, main lines with 5 d4 and 5 d3.} O-O {[%emt 0:00:17]} 10. a3 {[%emt 0:00:04]} Bxd2 {[%emt 0:01:29]} 11. Bxd2 {[%emt 0:02:54] The position is equal.} Bg4 {[%emt 0:00:56]} 12. h3 {[%emt 0:12:28]} Bxf3 {[%emt 0:01:20]} 13. Qxf3 {[%emt 0:06:02] [#]} Nce7 $146 {[%emt 0:05:13]} (13... Nb6 $11 14. Bd3 Nxd4) ({Predecessor:} 13... Nb6 14. Ba2 Nxd4 15. Qg4 Nf3+ 16. Qxf3 Qxd2 17. Qxb7 Qxb2 18. Qxc7 Qf6 19. Rac1 Rfc8 {1-0 (27) Mamedov,R (2656)-Kamsky,G (2657) Europe Echecs INT 2021}) 14. Rfe1 {[%emt 0:04:41] White is more active.} (14. Bg5 $5 {[%cal Rc4d5]} Qd6 15. Bxe7 Nxe7 16. Qxb7 $16) 14... c6 {[%emt 0:00:46]} 15. Bd3 {[%emt 0:06:08]} (15. Re2 $14) 15... Re8 $11 {[%emt 0:04:05]} 16. Bg5 {[%emt 0:02:54][%cal Od3h7]} Qd7 {[%emt 0:04:23]} 17. h4 {[%emt 0:06:30]} h6 {[%emt 0:02:58]} 18. Bd2 {[%emt 0:00:42]} Ng6 {[%emt 0:07:51][%cal Be7g6,Bg6f8,Bf8e6][%mdl 32]} 19. h5 {[%emt 0:02:51]} Nf8 {[%emt 0:00:09]} 20. Re5 {[%emt 0:02:50]} Rad8 {[%emt 0:05:46] aiming for ...Rxe5.} 21. Qg3 {[%emt 0:08:05] Hoping for Bf5.} Kh8 {[%emt 0:01:34]} 22. Bf5 {[%emt 0:00:38] A strong pair of Bishops.} Ne6 {[%emt 0:00:33]} 23. Rae1 {[%emt 0:01:18]} Ndc7 {[%emt 0:01:05]} 24. R1e4 $40 {[%emt 0:17:13][%mdl 128] White is up to no good.} Nb5 $2 {[%emt 0:02:12][%mdl 8192] [#] A mistake that costs the game.} (24... Qe7 $11) 25. Bxh6 $1 $18 {[%emt 0:00:37][%mdl 512]} Rg8 {[%emt 0:03:06]} (25... gxh6 $2 26. Qe3 Kg7 27. Rg4+ Kf8 28. Qxh6+ Ke7 29. Bxe6 fxe6 {[#]} 30. Rxb5 $1 {[%mdl 512]}) 26. Bg5 {[%emt 0:05:26]} Rde8 {[%emt 0:02:39]} (26... Nbxd4 27. Bxe6 Nxe6 28. Bxd8 Qxd8) 27. Bxe6 {[%emt 0:00:50]} Rxe6 {[%emt 0:00:05]} 28. Rxe6 {[%emt 0:00:42]} fxe6 {[%emt 0:00:01]} 29. h6 {[%emt 0:07:11]} gxh6 {[%emt 0:01:23]} 30. Qh3 {[%emt 0:01:29]} Rg6 {[%emt 0:00:35]} (30... Rxg5 $142 31. Rxe6 Rg6 32. Rxg6 Qxh3 33. gxh3 Kh7) 31. Bxh6 {[%emt 0:00:20] Threatens to win with Bf4+.} Kg8 {[%emt 0:01:12]} 32. Rf4 {[%emt 0:00:22] White threatens Rf8+ and mate.} Kh7 {[%emt 0:01:28]} 33. Bg5+ {[%emt 0:03:11]} Kg8 {[%emt 0:00:39]} 34. Bf6 {[%emt 0:00:12] Weighted Error Value: White=0.46/Black=0.76} 1-0

[Event "3rd VIZAG GM-Open 2022"]
[Site "Visakapatnam"]
[Date "2022.06.13"]
[Round "3.12"]
[White "Nguyen, Van Huy"]
[Black "Mayank Chakraborty"]
[Result "1-0"]
[ECO "E01"]
[WhiteElo "2405"]
[BlackElo "2015"]
[Annotator "TA"]
[PlyCount "105"]
[EventDate "2022.06.13"]
[EventType "swiss"]
[EventCountry "IND"]
[SourceTitle "playchess.com"]
[Source "ChessBase"]
[SourceQuality "1"]
[TimeControl "5400+30"]

{[%evp 9,105,2,25,-8,0,0,15,34,56,7,125,118,118,100,101,106,109,110,105,97,109,114,120,105,89,109,104,100,103,103,103,98,94,91,90,90,92,100,110,38,118,86,84,88,122,122,117,115,111,108,133,125,134,122,134,120,126,123,123,127,139,139,151,151,173,174,267,269,284,272,280,280,402,394,664,649,1114,1102,1100,1041,1078,924,1123,994,1414,767,1297,760,3246,2939,6091,6091,29985,29985,29991,29992,29992,29993]} 1. d4 {[%emt 0:00:08]} Nf6 {[%emt 0:00:06]} 2. Nf3 {[%emt 0:00:18]} e6 {[%emt 0:00:07]} 3. c4 {[%emt 0:00:31]} d5 {[%emt 0:00:06]} 4. g3 {[%emt 0:00:31]} dxc4 {[%emt 0:00:08]} 5. Qa4+ {[%emt 0:01:13]} Nc6 {[%emt 0:03:14]} 6. Qxc4 {[%emt 0:02:00] E01: Catalan: Early deviations.} Qd5 {[%emt 0:02:52]} 7. Qd3 {[%emt 0:12:47]} Nb4 {[%emt 0:01:31][%csl LRa2,LRd3]} 8. Qd1 {[%emt 0:01:01] [#] The position is equal.} e5 $146 {[%emt 0:16:18]} ({Predecessor:} 8... Qf5 9. Na3 Bd7 10. Bg2 Bc6 11. O-O Be7 12. b3 Qh5 13. Nc4 Rd8 14. a3 Nbd5 {0-1 (68) Uzintseva,D (1326)-Kvachko,A (1882) Moscow 2021}) 9. Nc3 {[%emt 0:06:55]} (9. a3 $14 Qa5 10. Bd2) 9... Qa5 {[%emt 0:03:23]} (9... Qd6 $11 {remains equal.}) 10. Nxe5 $16 {[%emt 0:09:58][%cal Bf3e5,Be5c4,Bc4e3][%mdl 32] Strongly threatening Bg2.} ({Stronger than} 10. dxe5 Bf5 $1 11. Bg2 Nc2+ 12. Kf1 Ne4 $1 13. Nxe4 Bxe4 $11) 10... Bf5 {[%emt 0:00:36] aiming for ...Nc2+.} 11. Nc4 {[%emt 0:01:06]} Qa6 {[%emt 0:02:31]} 12. Ne3 {[%emt 0:00:47] Prevents Nc2+.} Bg6 {[%emt 0:02:35]} 13. Bh3 {[%emt 0:10:01]} Rd8 {[%emt 0:01:39]} 14. O-O {[%emt 0:01:43]} Bc5 {[%emt 0:05:23]} 15. Qb3 $1 {[%emt 0:01:23]} Rxd4 {[%emt 0:00:02]} 16. Nf5 {[%emt 0:00:35]} Bxf5 {[%emt 0:00:27]} 17. Bxf5 {[%emt 0:00:03]} Rd8 {[%emt 0:12:28]} 18. Bf4 {[%emt 0:05:27]} Nbd5 {[%emt 0:01:55]} 19. Nxd5 {[%emt 0:05:07]} Nxd5 {[%emt 0:00:29]} (19... Rxd5 $2 20. Be4 $1 {[%mdl 512]} Rd4 21. Qxb7 (21. Bxb7 Qb6 $18) 21... Qxb7 22. Bxb7 $18) 20. Rad1 {[%emt 0:01:01]} Nxf4 {[%emt 0:01:50]} 21. Rxd8+ {[%emt 0:00:28]} ({But not} 21. gxf4 Rxd1 22. Qxd1 Bd6 $11) 21... Kxd8 {[%emt 0:00:02]} 22. gxf4 {[%emt 0:00:10] Threatens to win with Rd1+.} Ke8 {[%emt 0:10:27]} 23. Qc3 {[%emt 0:03:46] White is more active.} Qd6 {[%emt 0:01:14]} 24. e3 {[%emt 0:03:01]} (24. Bc2 $16) 24... Ke7 {[%emt 0:03:21]} ({Black should play} 24... Kf8 $14) 25. Bg4 {[%emt 0:07:48]} Bb4 {[%emt 0:03:58]} 26. Qc4 {[%emt 0:01:06] And now Rd1 would win.} Rd8 {[%emt 0:02:08]} 27. Rd1 {[%emt 0:01:16]} Bd2 {[%emt 0:00:49]} 28. Qe4+ {[%emt 0:00:47]} Kf8 {[%emt 0:00:24]} 29. Qxh7 {[%emt 0:00:47]} Qg6 {[%emt 0:03:55]} 30. Qxg6 {[%emt 0:03:31]} fxg6 {[%emt 0:00:01][%mdl 4096] Endgame KRB-KRB} 31. Kf1 {[%emt 0:00:13] Ke2 is the strong threat.} Ke7 {[%emt 0:00:33]} 32. Ke2 {[%emt 0:00:32]} Bb4 {[%emt 0:00:19]} 33. Rxd8 {[%emt 0:00:11]} Kxd8 {[%emt 0:00:02] KB-KB} 34. Bf3 {[%emt 0:00:05]} b6 {[%emt 0:01:27]} 35. Be4 {[%emt 0:00:06]} Ke7 {[%emt 0:01:26]} 36. Bxg6 {[%emt 0:00:10]} Kf6 {[%emt 0:01:21]} 37. Bd3 {[%emt 0:00:07]} a5 {[%emt 0:00:14] [#]} (37... Be7 {was worth a try.} 38. Kf3 Ke6) 38. a4 $1 $18 {[%emt 0:00:10]} Bd6 {[%emt 0:01:25]} 39. Kf3 {[%emt 0:00:13]} Bb4 {[%emt 0:00:01]} 40. h4 {[%emt 0:00:24][%cal Bh2h4,Bh4h5][%mdl 32]} Bd2 {[%emt 0:00:09]} (40... Kf7 $142 41. Kg4 Bc5) 41. h5 {[%emt 0:00:06]} Bc1 $2 {[%emt 0:00:11]} (41... Kf7 42. e4 Bc1) 42. b3 {[%emt 0:00:04]} Bd2 {[%emt 0:00:11]} 43. Kg4 {[%emt 0:01:05]} Be1 {[%emt 0:00:26]} 44. f3 {[%emt 0:00:05][%cal Bf2f3,Bf3f4][%mdl 32]} Bd2 {[%emt 0:00:12]} 45. e4 {[%emt 0:00:04][%cal Be3e4,Be4e5,Be5f6][%mdl 32]} Be3 {[%emt 0:00:28]} 46. Bc4 {[%emt 0:00:24]} Bd2 {[%emt 0:00:08]} 47. e5+ {[%emt 0:00:29]} Ke7 {[%emt 0:00:02]} 48. f5 {[%emt 0:00:05] Hoping for f4.} Be3 {[%emt 0:00:34]} 49. f4 {[%emt 0:00:05]} Bd2 {[%emt 0:00:04]} 50. f6+ {[%emt 0:01:38]} gxf6 {[%emt 0:22:18]} 51. h6 {[%emt 0:00:12] White mates.} Kf8 {[%emt 0:00:00]} 52. exf6 {[%emt 0:00:05]} Bc3 {[%emt 0:00:00]} 53. Kf5 {[%emt 0:25:12] Weighted Error Value: White=0.05 (flawless) /Black=0.29 (precise)} 1-0

[Event "3rd VIZAG GM-Open 2022"]
[Site "Visakapatnam"]
[Date "2022.06.13"]
[Round "3.13"]
[White "Aditya Varun Gampa"]
[Black "Abdurakhmonov, Mukhammadali"]
[Result "1-0"]
[ECO "B41"]
[WhiteElo "1836"]
[BlackElo "2308"]
[Annotator "TA"]
[PlyCount "63"]
[EventDate "2022.06.13"]
[EventType "swiss"]
[EventCountry "IND"]
[SourceTitle "playchess.com"]
[Source "ChessBase"]
[SourceQuality "1"]
[TimeControl "5400+30"]

{[%evp 14,63,60,53,52,51,49,49,51,59,69,49,57,15,62,52,65,50,58,6,17,6,27,8,13,0,0,-8,-13,-37,0,0,0,0,60,60,51,77,66,31,34,4,623,543,926,888,799,781,1314,1281,1207,1146]} 1. e4 {[%emt 1:31:00]} c5 {[%emt 1:31:00]} 2. Nf3 {[%emt 0:00:30]} e6 {[%emt 0:00:30]} 3. d4 {[%emt 0:00:30]} cxd4 {[%emt 0:00:30]} 4. Nxd4 {[%emt 0:00:30]} a6 {[%emt 0:00:30]} 5. c4 {[%emt 0:00:30]} Nf6 {[%emt 0:00:30]} 6. Nc3 {[%emt 0:00:30]} Qc7 {[%emt 0:00:30]} 7. Be2 {[%emt 0:00:30]} b6 {[%emt 0:00:30]} 8. Be3 {[%emt 0:00:30]} Bb7 {[%emt 0:00:30] B41: Sicilian: Kan Variation: 5 c4.} 9. f3 {[%emt 0:00:30]} d6 {[%emt 0:00:30]} 10. O-O {[%emt 0:00:30]} Be7 {[%emt 0:00:30] White is slightly better.} 11. Rc1 {[%emt 0:00:30]} O-O {[%emt 0:00:30]} 12. Kh1 {[%emt 0:00:30] White is more active.} Nbd7 {[%emt 0:00:30]} 13. g4 {[%emt 0:00:30][%cal Bg2g4,Bg4g5][%mdl 32] [#]} Ne5 $146 {[%emt 0:00:30]} (13... h6 $11 {is more appropriate.}) ({Predecessor:} 13... g6 14. g5 Nh5 15. f4 Ng7 16. b3 Rac8 17. Bf3 Qb8 18. Qe2 Qa8 19. Qg2 Nc5 {0-1 (71) Sorin,M (2234)-Khristovoy,D (2005) Chess.com INT 2020}) 14. g5 $14 {[%emt 0:00:30]} Nfd7 {[%emt 0:00:30]} 15. b3 {[%emt 0:00:30]} Qd8 {[%emt 0:00:30]} 16. f4 {[%emt 0:00:30]} ({White should try} 16. h4 $14) 16... Ng6 $11 {[%emt 0:00:30]} 17. f5 {[%emt 0:00:30]} (17. Rg1 {with more complications.} Re8 18. Bf3 Nxf4 19. Bxf4 e5 20. Qd2) 17... exf5 {[%emt 0:00:30]} 18. Nxf5 {[%emt 0:00:30]} Bxg5 {[%emt 0:00:30]} 19. Bxg5 {[%emt 0:00:30]} Qxg5 {[%emt 0:00:30]} 20. Nxd6 {[%emt 0:00:30]} Bc6 {[%emt 0:00:30] Hoping for ...Rad8.} 21. Qd4 {[%emt 0:00:30]} f5 {[%emt 0:00:30]} 22. Nd5 $40 {[%emt 0:00:30][%cal Rd6f5][%mdl 128] White mounts an attack.} fxe4 {[%emt 0:00:30] White must now prevent ...Nf4.} 23. Nb4 {[%emt 0:00:30]} ({Don't play} 23. Qxe4 Nf4 24. Bf3 Bxd5 25. cxd5 Ne5 $17) 23... Nde5 {[%emt 0:00:30]} (23... Nf4 $11 24. Rxf4 Qxf4) 24. Nxc6 $14 {[%emt 0:00:30][%mdl 64] [#] Remove Defender} Nxc6 {[%emt 0:00:30]} 25. Qxe4 {[%emt 0:00:30] The board is on fire.} Nce5 {[%emt 0:00:30]} 26. b4 {[%emt 0:00:30]} Nf4 {[%emt 0:00:30]} 27. c5 {[%emt 0:00:30]} (27. Rg1 $5 {[%cal Rg1g5]} Qf6 28. c5 $11) 27... Nh3 $2 {[%emt 0:00:30][%mdl 8192] [#] A mistake that costs the game.} (27... Nxe2 $11 28. Qxe2 Rxf1+ 29. Rxf1 Rf8) 28. Rce1 {[%emt 0:00:30] White is clearly winning.} h5 {[%emt 0:00:30]} 29. Bc4+ {[%emt 0:00:30]} Nxc4 {[%emt 0:00:30]} 30. Qxc4+ {[%emt 0:00:30]} Kh8 {[%emt 0:00:30]} 31. Nf7+ {[%emt 0:00:30]} Rxf7 {[%emt 0:00:30]} 32. Qxf7 {[%emt 0:00:30] Weighted Error Value: White=0.19 (very precise) /Black=0.37} 1-0